bitfinex/quotes_SOLUSD_20251117
["timestamp","ask_amount","ask_price","bid_price","bid_amount"]
[1763412077086,18.8548739,130.02,129.98,0.69]
[1763412077401,18.8548739,130.0,129.96,18.12096]
[1763412077622,18.8548739,130.0,129.94,0.69]
[1763412077623,9.78882769,129.98,129.94,9.06604621]
[1763412077775,9.06604621,129.97,129.95,18.12096]
[1763412077982,9.06604621,129.98,129.95,18.12096]
[1763412078233,9.06604621,129.99,129.95,27.84700621]
[1763412078499,9.78882769,129.98,129.95,0.66]
[1763412079500,9.06604621,129.98,129.95,0.66]
[1763412079689,9.06604621,129.98,129.94,27.18700621]
[1763412079890,9.06604621,129.98,129.94,27.84700621]
[1763412080083,9.06604621,129.98,129.94,18.78096]
[1763412080300,9.78882769,129.97,129.94,18.78096]
[1763412080579,9.78882769,129.95,129.91,9.72604621]
[1763412081195,9.78882769,129.96,129.92,9.72604621]
[1763412081402,18.8548739,129.96,129.92,18.78096]
[1763412081710,18.8548739,129.96,129.94,18.12096]
[1763412081886,9.78882769,129.97,129.94,18.12096]
[1763412082292,18.8548739,129.97,129.92,9.06604621]
[1763412082480,9.06604621,129.98,129.94,18.78096]
[1763412082681,9.06604621,129.98,129.94,18.12096]
[1763412082899,9.06604621,129.98,129.94,18.78096]
[1763412083412,9.06604621,129.96,129.92,9.72604621]
[1763412083598,9.06604621,129.97,129.93,0.66]
[1763412084482,0.71,130.0,129.94,18.12096]
[1763412084680,9.06604621,129.98,129.94,18.12096]
[1763412084888,9.06604621,129.98,129.94,18.78096]
[1763412085690,0.71,130.0,129.95,0.66]
[1763412085691,9.06604621,129.99,129.95,0.66]
[1763412085907,0.71,130.03,129.99,18.12096]
[1763412086213,102.7,130.05,130.0,27.18700621]
[1763412086413,111.76604621,130.05,130.01,0.66]
[1763412086581,9.78882769,130.04,130.01,0.66]
[1763412086782,111.76604621,130.05,130.01,0.66]
[1763412087182,9.78882769,130.04,130.01,0.66]
[1763412088095,102.7,130.05,130.01,9.72604621]
[1763412088297,111.76604621,130.05,130.01,0.66]
[1763412088692,18.8548739,130.04,130.0,18.12096]
[1763412089020,18.8548739,130.04,129.94,8.53834451]
[1763412089021,9.06604621,130.01,129.92,9.78882769]
[1763412089321,102.7,130.05,129.97,9.06604621]
[1763412089322,9.06604621,130.02,129.97,9.06604621]
[1763412089609,9.06604621,130.02,129.98,0.66]
[1763412089917,9.78882769,130.04,129.98,27.84700621]
[1763412090208,9.06604621,130.03,129.98,9.72604621]
[1763412090404,9.78882769,130.04,130.0,18.12096]
[1763412090405,18.8548739,130.04,130.0,18.12096]
[1763412090590,9.06604621,130.03,130.01,18.12096]
[1763412090993,9.78882769,130.04,130.02,0.66]
[1763412091199,9.78882769,130.05,130.02,0.66]
[1763412091596,9.06604621,130.04,130.02,18.12096]
[1763412094628,9.06604621,130.04,129.95,8.53834451]
[1763412094629,9.77604621,130.03,129.96,9.06604621]
[1763412094813,9.06604621,130.02,129.99,18.12096]
[1763412095124,18.8548739,130.03,129.99,18.12096]
[1763412095310,18.8548739,130.03,130.0,18.12096]
[1763412095311,9.06604621,130.02,130.0,18.12096]
[1763412097003,18.8548739,130.02,129.97,9.06604621]
[1763412097325,9.06604621,129.99,129.95,0.66]
[1763412097521,9.06604621,129.96,129.9,9.72604621]
[1763412097694,9.06604621,129.96,129.91,0.66]
[1763412097893,9.06604621,129.96,129.94,18.12096]
[1763412098424,9.78882769,129.98,129.94,18.12096]
[1763412098425,9.06604621,129.97,129.94,18.12096]
[1763412099493,9.78882769,129.98,129.95,18.12096]
[1763412099696,9.06604621,129.97,129.95,18.78096]
[1763412099914,9.06604621,129.97,129.95,18.12096]
[1763412100598,9.06604621,129.97,129.94,0.66]
[1763412101012,18.8548739,129.96,129.94,0.66]
[1763412101596,9.78882769,129.99,129.95,18.12096]
[1763412101817,9.06604621,129.97,129.95,18.12096]
[1763412102042,10.48882769,129.99,129.95,18.12096]
[1763412102043,9.06604621,129.98,129.96,0.7]
[1763412102322,102.7,130.0,129.96,0.7]
[1763412102508,111.76604621,130.0,129.98,18.12096]
[1763412103108,18.8548739,129.99,129.95,0.7]
[1763412103396,9.06604621,129.96,129.93,0.7]
[1763412103596,9.06604621,129.96,129.94,18.12096]
[1763412103998,9.06604621,129.97,129.94,18.12096]
[1763412104206,9.06604621,129.97,129.92,9.06604621]
[1763412104207,9.06604621,129.97,129.95,18.82096]
[1763412105526,9.06604621,129.97,129.95,18.12096]
[1763412105922,9.06604621,129.97,129.93,0.7]
[1763412106143,9.06604621,129.97,129.95,18.12096]
[1763412106707,9.06604621,129.97,129.95,18.82096]
[1763412106909,9.06604621,129.97,129.93,0.7]
[1763412107117,9.78882769,129.99,129.95,18.12096]
[1763412107405,9.06604621,129.98,129.95,18.12096]
[1763412107604,9.06604621,129.98,129.95,18.82096]
[1763412108118,9.78882769,129.99,129.96,18.12096]
[1763412108428,9.06604621,129.97,129.95,18.12096]
[1763412108840,9.06604621,129.97,129.95,18.82096]
[1763412109012,18.8548739,129.99,129.95,18.82096]
[1763412109211,9.06604621,129.98,129.95,18.82096]
[1763412109716,18.8548739,129.99,129.96,0.7]
[1763412109921,18.8548739,129.99,129.97,18.12096]
[1763412110647,102.7,130.0,129.98,18.82096]
[1763412110810,9.76604621,130.03,129.99,0.7]
[1763412111014,9.78882769,130.02,130.0,18.12096]
[1763412111921,9.06604621,130.02,130.0,18.12096]
[1763412112141,9.78882769,130.04,130.02,18.12096]
[1763412112426,18.8548739,130.04,130.02,18.12096]
[1763412112638,9.06604621,130.04,130.02,18.12096]
[1763412113014,9.06604621,130.05,130.02,0.7]
[1763412113223,9.78882769,130.02,129.99,18.12096]
[1763412113423,18.8548739,130.02,130.0,18.12096]
[1763412114030,9.06604621,130.04,130.02,18.12096]
[1763412114657,9.98882769,130.06,130.01,0.7]
[1763412114658,19.0548739,130.06,130.04,18.12096]
[1763412115729,19.0548739,130.06,130.03,0.7]
[1763412116012,0.2,130.06,130.05,18.12096]
[1763412116424,0.2,130.06,130.05,0.7]
[1763412116858,9.78882769,130.13,130.05,27.88700621]
[1763412117007,9.78882769,130.11,130.09,18.12096]
[1763412117411,0.7,130.13,130.1,18.12096]
[1763412117611,9.78882769,130.11,130.1,18.12096]
[1763412117810,19.5548739,130.11,130.08,18.12096]
[1763412118037,9.06604621,130.09,130.07,18.12096]
[1763412118345,10.48882769,130.11,130.07,18.12096]
[1763412118542,10.48882769,130.11,130.05,9.76604621]
[1763412118543,0.7,130.13,130.09,18.12096]
[1763412118748,18.8548739,130.1,130.08,18.12096]
[1763412118928,9.06604621,130.09,130.08,18.12096]
[1763412119312,19.5548739,130.09,130.05,18.12096]
[1763412119511,9.06604621,130.07,130.05,18.12096]
[1763412119711,9.78882769,130.07,130.05,18.12096]
[1763412120229,9.06604621,130.08,130.02,27.18700621]
[1763412120421,9.06604621,130.1,130.08,18.12096]
[1763412120608,9.78882769,130.11,130.1,18.12096]
[1763412121141,18.8548739,130.14,130.1,18.82096]
[1763412121311,18.8548739,130.14,130.11,18.12096]
[1763412121513,9.78882769,130.14,130.11,18.82096]
[1763412121714,9.06604621,130.15,130.13,18.12096]
[1763412121936,0.7,130.17,130.13,18.12096]
[1763412122113,9.06604621,130.17,130.15,18.12096]
[1763412122457,9.76604621,130.16,130.15,18.12096]
[1763412122614,9.78882769,130.15,130.13,18.12096]
[1763412123036,9.78882769,130.17,130.13,18.12096]
[1763412123208,10.48882769,130.17,130.13,18.12096]
[1763412123542,9.78882769,130.13,130.05,0.7]
[1763412123717,14.17760912,130.06,130.02,0.7]
[1763412124240,14.17760912,130.03,130.0,0.7]
[1763412124821,9.78882769,130.05,130.01,18.12096]
[1763412124822,14.17760912,130.04,130.01,18.12096]
[1763412125013,9.78882769,130.09,130.01,18.12096]
[1763412125218,14.17760912,130.07,130.02,0.7]
[1763412125513,14.17760912,130.08,130.03,18.12096]
[1763412125932,14.17760912,130.08,130.04,0.7]
[1763412126150,14.17760912,130.06,130.04,18.12096]
[1763412126352,23.96643681,130.07,130.04,18.12096]
[1763412126657,14.17760912,130.08,130.05,0.7]
[1763412126821,14.17760912,130.08,130.05,18.82096]
[1763412127431,14.17760912,130.09,130.06,0.7]
[1763412127641,14.17760912,130.08,130.07,18.12096]
[1763412127842,23.96643681,130.08,130.07,18.12096]
[1763412128220,23.96643681,130.08,130.06,18.12096]
[1763412129148,23.96643681,130.08,130.04,0.7]
[1763412130417,23.96643681,130.08,130.06,18.12096]
[1763412130828,24.66643681,130.07,130.06,18.12096]
[1763412131238,23.96643681,130.07,130.04,18.12096]
[1763412131444,14.17760912,130.06,130.04,18.12096]
[1763412132667,9.78882769,130.04,129.99,14.85760912]
[1763412132845,23.96643681,130.04,129.99,14.85760912]
[1763412133034,23.96643681,130.04,130.0,0.68]
[1763412133238,23.96643681,130.04,130.02,18.12096]
[1763412133467,23.96643681,130.04,130.0,0.68]
[1763412133769,14.17760912,130.03,130.0,0.68]
[1763412134070,14.17760912,130.05,130.02,18.12096]
[1763412134429,14.17760912,130.05,130.02,18.80096]
[1763412134635,14.17760912,130.05,130.02,18.12096]
[1763412134862,9.78882769,130.06,130.02,18.12096]
[1763412135059,2.0,130.11,130.03,0.68]
[1763412135060,14.17760912,130.05,130.03,0.68]
[1763412135240,9.78882769,130.05,130.04,18.12096]
[1763412135456,23.96643681,130.05,130.04,18.12096]
[1763412136042,14.17760912,130.05,130.04,18.12096]
[1763412136241,14.17760912,130.07,130.05,18.12096]
[1763412136548,14.17760912,130.06,130.04,18.12096]
[1763412136773,14.17760912,130.05,130.02,18.80096]
[1763412137259,14.17760912,130.04,130.02,18.80096]
[1763412137842,14.17760912,130.04,129.99,0.67]
[1763412138170,14.17760912,130.03,129.99,0.67]
[1763412138343,14.17760912,130.03,130.01,18.12096]
[1763412139056,14.17760912,130.04,130.02,0.67]
[1763412139275,14.17760912,130.06,130.02,0.67]
[1763412139475,0.68,130.11,130.06,18.12096]
[1763412139644,14.17760912,130.09,130.06,18.12096]
[1763412139846,14.17760912,130.09,130.07,18.12096]
[1763412140678,0.68,130.11,130.04,0.67]
[1763412140865,14.17760912,130.08,130.05,0.67]
[1763412141347,9.78882769,130.1,130.05,0.67]
[1763412141683,14.17760912,130.09,130.05,0.67]
[1763412141983,14.17760912,130.07,130.05,18.12096]
[1763412142276,14.17760912,130.06,130.01,0.67]
[1763412142483,14.17760912,130.06,130.03,18.12096]
[1763412142776,14.17760912,130.04,129.98,14.17760912]
[1763412142967,14.17760912,130.04,130.01,0.67]
[1763412143140,14.17760912,130.04,130.01,18.79096]
[1763412143342,14.17760912,130.06,130.01,14.84760912]
[1763412143542,14.17760912,130.07,130.04,18.12096]
[1763412144071,9.78882769,130.08,130.06,18.12096]
[1763412144072,23.96643681,130.08,130.06,18.12096]
[1763412144459,14.17760912,130.07,130.06,18.12096]
[1763412145170,14.17760912,130.07,130.02,0.67]
[1763412145477,14.17760912,130.06,130.04,18.12096]
[1763412145684,14.17760912,130.08,130.05,18.79096]
[1763412145872,9.78882769,130.1,130.05,18.79096]
[1763412146079,14.17760912,130.1,130.06,0.67]
[1763412146962,14.17760912,130.09,130.05,18.12096]
[1763412147297,14.17760912,130.07,130.04,0.67]
[1763412147584,14.17760912,130.07,130.05,18.12096]
[1763412148165,14.17760912,130.07,130.05,18.79096]
[1763412148466,14.17760912,130.08,130.06,18.12096]
[1763412148798,14.17760912,130.09,130.06,18.12096]
[1763412148970,14.17760912,130.1,130.07,0.67]
[1763412149162,14.17760912,130.1,130.08,18.12096]
[1763412149680,14.17760912,130.12,130.1,18.12096]
[1763412149988,0.68,130.17,130.11,0.67]
[1763412150156,14.17760912,130.15,130.11,0.67]
[1763412150478,14.17760912,130.14,130.13,18.12096]
[1763412150983,14.17760912,130.15,130.12,18.12096]
[1763412151481,14.17760912,130.13,130.09,18.12096]
[1763412151675,14.17760912,130.12,130.09,18.12096]
[1763412151988,14.17760912,130.12,130.09,18.79096]
[1763412152369,14.17760912,130.12,130.09,0.67]
[1763412152573,14.85760912,130.12,130.08,18.12096]
[1763412152763,14.17760912,130.12,130.08,18.79096]
[1763412152958,14.17760912,130.11,130.09,18.12096]
[1763412153677,14.17760912,130.12,130.07,32.96856912]
[1763412153887,14.17760912,130.11,130.09,18.12096]
[1763412154089,23.96643681,130.12,130.09,18.12096]
[1763412154264,23.96643681,130.12,130.07,32.96856912]
[1763412154465,23.96643681,130.12,130.1,18.12096]
[1763412155187,14.17760912,130.12,130.1,18.12096]
[1763412156464,14.17760912,130.11,130.09,18.12096]
[1763412156906,14.85760912,130.1,130.04,8.53834451]
[1763412157184,14.17760912,130.1,130.05,14.17760912]
[1763412157390,14.17760912,130.1,130.06,0.67]
[1763412157567,14.17760912,130.1,130.08,18.12096]
[1763412157774,14.17760912,130.09,130.07,18.12096]
[1763412158101,116.87760912,130.11,130.08,0.67]
[1763412158403,14.17760912,130.12,130.09,18.12096]
[1763412158567,14.17760912,130.12,130.08,18.79096]
[1763412159409,14.17760912,130.12,130.09,18.79096]
[1763412159700,14.17760912,130.16,130.13,18.12096]
[1763412160069,14.17760912,130.16,130.13,18.79096]
[1763412160698,47.1239459,130.17,130.15,18.12096]
[1763412160897,14.17760912,130.16,130.15,18.12096]
[1763412161083,23.96643681,130.16,130.15,18.12096]
[1763412161482,24.64643681,130.16,130.11,0.67]
[1763412161679,14.17760912,130.15,130.11,0.67]
[1763412161983,14.17760912,130.15,130.12,0.69]
[1763412162795,10.46882769,130.16,130.14,18.12096]
[1763412162796,23.96643681,130.16,130.14,18.12096]
[1763412162993,24.66643681,130.16,130.14,18.12096]
[1763412163167,14.17760912,130.15,130.14,18.12096]
[1763412163503,9.78882769,130.14,130.11,18.12096]
[1763412163803,23.96643681,130.14,130.11,18.12096]
[1763412164006,23.96643681,130.14,130.12,18.12096]
[1763412164379,24.66643681,130.14,130.12,18.12096]
[1763412164586,0.2,130.18,130.12,18.12096]
[1763412164587,14.17760912,130.15,130.12,0.69]
[1763412164804,0.2,130.18,130.12,0.69]
[1763412164805,0.9,130.18,130.13,0.69]
[1763412165110,23.96643681,130.17,130.13,0.69]
[1763412165292,14.17760912,130.16,130.13,0.69]
[1763412165597,14.17760912,130.16,130.11,32.29856912]
[1763412165908,14.17760912,130.14,130.12,18.12096]
[1763412167383,47.09394913,130.17,130.15,18.12096]
[1763412168087,14.17760912,130.16,130.13,0.69]
[1763412168405,47.09394913,130.17,130.13,0.69]
[1763412168609,14.17760912,130.17,130.13,0.69]
[1763412168983,0.2,130.18,130.13,14.86760912]
[1763412169182,24.16643681,130.18,130.16,18.12096]
[1763412169634,9.98882769,130.18,130.16,18.12096]
[1763412169814,0.2,130.18,130.17,0.69]
[1763412169974,0.2,130.18,130.15,0.69]
[1763412170176,0.2,130.18,130.16,0.69]
[1763412173800,0.2,130.18,130.16,14.86760912]
[1763412174003,0.2,130.19,130.17,14.86760912]
[1763412174199,0.2,130.2,130.18,14.86760912]
[1763412174402,0.2,130.2,130.19,14.17760912]
[1763412174623,0.2,130.2,130.19,14.86760912]
[1763412175298,0.2,130.2,130.19,24.65643681]
[1763412176134,0.2,130.2,130.19,25.42454495]
[1763412176502,0.2,130.2,130.19,14.86760912]
[1763412176700,0.2,130.2,130.19,0.69]
[1763412177186,0.2,130.2,130.19,18.12096]
[1763412177315,15.07760912,130.2,130.15,14.86760912]
[1763412177517,14.17760912,130.18,130.15,0.69]
[1763412177828,14.17760912,130.18,130.16,18.12096]
[1763412178011,0.7,130.19,130.16,18.81096]
[1763412178012,14.17760912,130.19,130.16,18.81096]
[1763412178213,15.07760912,130.2,130.18,18.12096]
[1763412179209,0.7,130.19,130.13,0.69]
[1763412179515,14.17760912,130.17,130.13,0.69]
[1763412179709,14.17760912,130.16,130.1,0.69]
[1763412179913,14.17760912,130.15,130.1,0.69]
[1763412180329,14.17760912,130.17,130.15,18.12096]
[1763412180519,14.17760912,130.18,130.15,18.12096]
[1763412180729,14.87760912,130.18,130.15,18.12096]
[1763412180964,14.17760912,130.18,130.16,18.12096]
[1763412181267,14.17760912,130.19,130.17,18.12096]
[1763412181472,0.2,130.2,130.17,18.12096]
[1763412181641,14.87760912,130.19,130.17,18.12096]
[1763412181839,14.87760912,130.18,130.15,18.12096]
[1763412182138,9.78882769,130.15,130.06,0.69]
[1763412182446,14.17760912,130.13,130.11,18.12096]
[1763412182649,14.17760912,130.13,130.07,14.17760912]
[1763412182650,14.17760912,130.12,130.07,14.17760912]
[1763412182845,9.05225953,130.12,130.1,18.12096]
[1763412183166,9.75225953,130.12,130.08,0.69]
[1763412183337,9.78882769,130.13,130.05,0.69]
[1763412183338,9.75225953,130.11,130.05,0.69]
[1763412183541,9.05225953,130.1,130.05,9.74225953]
[1763412183741,9.75225953,130.11,130.09,18.12096]
[1763412184552,9.75225953,130.1,130.06,0.69]
[1763412184864,9.75225953,130.1,130.08,18.12096]
[1763412184865,9.05225953,130.1,130.08,18.12096]
[1763412185381,9.78882769,130.13,130.01,8.53834451]
[1763412185382,9.75225953,130.09,130.03,0.69]
[1763412185534,9.05225953,130.08,130.02,9.74225953]
[1763412185839,9.05225953,130.08,130.0,9.05225953]
[1763412185840,9.05225953,130.05,130.0,9.05225953]
[1763412186040,9.05225953,130.05,130.03,18.12096]
[1763412187237,9.05225953,130.05,129.97,9.22834451]
[1763412187475,9.05225953,130.02,129.98,0.69]
[1763412187769,9.05225953,130.02,130.0,18.12096]
[1763412188131,9.75225953,130.02,130.0,18.12096]
[1763412188478,9.75225953,130.01,129.96,0.69]
[1763412188677,9.05225953,130.0,129.96,0.69]
[1763412189048,9.05225953,130.0,129.98,18.12096]
[1763412189445,9.05225953,130.02,130.0,18.12096]
[1763412189668,9.05225953,130.04,130.0,18.12096]
[1763412189873,9.05225953,130.05,130.01,0.69]
[1763412190075,9.05225953,130.04,129.99,9.05225953]
[1763412190276,32.36688455,130.04,129.99,9.05225953]
[1763412190574,0.7,130.04,130.0,9.74225953]
[1763412191144,0.7,130.08,130.04,18.12096]
[1763412191484,0.7,130.08,130.05,18.12096]
[1763412191485,9.05225953,130.06,130.05,18.12096]
[1763412191664,9.78882769,130.05,130.02,18.12096]
[1763412191973,9.05225953,130.03,130.02,18.12096]
[1763412192374,9.05225953,130.03,129.98,9.71225953]
[1763412192375,9.75225953,130.03,129.98,9.71225953]
[1763412192680,9.05225953,130.02,129.98,0.66]
[1763412193053,9.75225953,130.03,130.01,18.12096]
[1763412193476,0.7,130.02,130.01,18.12096]
[1763412193857,9.78882769,130.05,130.03,18.12096]
[1763412194171,9.78882769,130.06,130.02,9.71225953]
[1763412194386,9.78882769,130.06,129.95,18.3271722]
[1763412194387,9.78882769,130.1,130.07,18.12096]
[1763412194588,9.05225953,130.09,130.07,18.12096]
[1763412194883,0.7,130.09,130.07,18.12096]
[1763412195177,0.7,130.08,130.07,18.12096]
[1763412195477,10.48882769,130.08,130.05,18.12096]
[1763412195682,19.54108722,130.08,130.05,18.12096]
[1763412196082,9.05225953,130.06,130.0,27.17321953]
[1763412196302,9.05225953,130.06,130.04,18.12096]
[1763412196593,9.75225953,130.06,130.04,18.12096]
[1763412196984,9.05225953,130.07,130.05,18.12096]
[1763412197606,9.05225953,130.07,129.95,40.70941688]
[1763412197607,9.78882769,130.05,130.0,0.66]
[1763412197900,18.84108722,130.05,130.0,0.66]
[1763412198104,19.53108722,130.05,130.0,0.66]
[1763412198308,19.53108722,130.05,130.03,18.12096]
[1763412199375,19.53108722,130.05,130.0,0.66]
[1763412199595,19.53108722,130.05,130.0,0.7]
[1763412200212,9.05225953,130.04,130.0,0.7]
[1763412200409,9.05225953,130.02,129.97,0.7]
[1763412200580,9.05225953,130.01,129.97,0.7]
[1763412201116,9.74225953,130.02,129.99,18.12096]
[1763412201279,9.05225953,130.01,129.99,18.12096]
[1763412201909,9.74225953,130.02,129.99,18.12096]
[1763412202114,121.54108722,130.03,129.99,18.82096]
[1763412202287,121.54108722,130.03,130.0,18.12096]
[1763412202483,122.23108722,130.03,130.0,18.12096]
[1763412203279,121.54108722,130.03,130.01,18.12096]
[1763412203492,103.39,130.03,130.01,18.12096]
[1763412203811,112.44225953,130.03,130.01,18.12096]
[1763412203991,111.75225953,130.03,130.0,18.12096]
[1763412204186,111.75225953,130.03,130.01,18.12096]
[1763412204419,112.44225953,130.03,130.0,18.12096]
[1763412204579,9.05225953,130.02,130.0,18.12096]
[1763412204788,18.84108722,130.01,129.95,0.7]
[1763412205123,9.05225953,129.98,129.93,0.7]
[1763412205306,9.05225953,129.96,129.92,0.1]
[1763412205472,9.74225953,129.96,129.93,18.12096]
[1763412205673,9.74225953,129.96,129.94,18.12096]
[1763412206086,0.69,129.96,129.94,18.12096]
[1763412206284,18.84108722,129.98,129.95,18.12096]
[1763412206695,19.53108722,129.98,129.95,18.12096]
[1763412206897,18.84108722,129.98,129.95,18.12096]
[1763412207091,9.05225953,129.97,129.95,18.12096]
[1763412207417,9.74225953,129.97,129.95,18.12096]
[1763412207788,9.78882769,129.98,129.92,0.1]
[1763412207789,9.05225953,129.96,129.92,0.1]
[1763412208028,9.05225953,129.96,129.94,18.12096]
[1763412208630,9.74225953,129.96,129.94,18.12096]
[1763412208846,9.05225953,129.97,129.95,18.12096]
[1763412209129,9.78882769,129.98,129.95,18.12096]
[1763412209434,19.53108722,129.98,129.95,18.12096]
[1763412210394,9.05225953,129.99,129.95,18.82096]
[1763412210913,9.74225953,129.99,129.95,0.7]
[1763412211333,9.74225953,129.99,129.96,18.12096]
[1763412211923,9.05225953,129.97,129.92,0.1]
[1763412212118,9.05225953,129.96,129.93,18.12096]
[1763412212625,9.05225953,129.95,129.92,0.8]
[1763412213652,0.69,129.95,129.92,18.22096]
[1763412213944,9.05225953,129.95,129.92,0.1]
[1763412214149,18.84108722,129.96,129.94,18.12096]
[1763412214455,9.05225953,129.95,129.92,0.1]
[1763412214793,18.84108722,129.93,129.92,0.1]
[1763412215118,19.53108722,129.93,129.92,0.1]
[1763412218576,10.47882769,129.93,129.92,0.1]
[1763412218850,19.53108722,129.93,129.92,0.1]
[1763412219746,0.69,129.93,129.92,0.1]
[1763412219919,9.74225953,129.93,129.92,0.1]
[1763412220121,23.2164664,129.97,129.92,0.8]
[1763412220322,9.05225953,129.97,129.95,18.12096]
[1763412220551,9.74225953,129.96,129.92,0.1]
[1763412220842,9.74225953,129.96,129.92,18.22096]
[1763412220843,18.84108722,129.95,129.92,18.22096]
[1763412221034,19.53108722,129.95,129.92,18.22096]
[1763412221418,19.53108722,129.95,129.92,0.1]
[1763412221620,19.53108722,129.95,129.92,18.22096]
[1763412221820,9.05225953,129.94,129.92,18.22096]
[1763412222225,9.05225953,129.93,129.92,0.1]
[1763412223151,9.05225953,129.94,129.92,18.22096]
[1763412223336,9.05225953,129.93,129.92,18.22096]
[1763412223536,9.77225953,129.93,129.92,18.22096]
[1763412223843,9.05225953,129.93,129.92,18.22096]
[1763412224041,9.77225953,129.93,129.92,0.1]
[1763412225371,19.56108722,129.93,129.92,0.1]
[1763412225547,10.50882769,129.93,129.92,0.1]
[1763412225938,19.56108722,129.93,129.92,0.1]
[1763412226166,9.78882769,129.92,129.88,0.1]
[1763412226362,18.84108722,129.89,129.88,0.1]
[1763412226867,19.56108722,129.89,129.88,0.1]
[1763412227562,2.0,129.97,129.88,0.1]
[1763412227741,9.05225953,129.89,129.88,0.1]
[1763412228645,0.72,129.91,129.88,0.1]
[1763412228847,9.05225953,129.92,129.88,0.76]
[1763412229165,9.05225953,129.92,129.9,18.12096]
[1763412229661,9.78882769,129.9,129.89,18.12096]
[1763412229835,18.84108722,129.9,129.89,18.12096]
[1763412230039,18.84108722,129.9,129.88,0.1]
[1763412230234,9.05225953,129.89,129.88,0.1]
[1763412231053,9.78882769,129.91,129.88,0.1]
[1763412231257,9.05225953,129.89,129.88,0.1]
[1763412231670,19.56108722,129.89,129.88,0.1]
[1763412232168,18.84108722,129.89,129.88,0.1]
[1763412232667,19.56108722,129.89,129.88,0.1]
[1763412234451,18.84108722,129.89,129.88,0.1]
[1763412234658,103.42,129.96,129.88,0.76]
[1763412234842,0.72,129.97,129.92,18.12096]
[1763412235040,9.05225953,129.94,129.92,18.12096]
[1763412235352,0.72,129.97,129.91,18.12096]
[1763412235353,9.78882769,129.96,129.91,18.12096]
[1763412235564,9.05225953,129.94,129.91,18.12096]
[1763412236054,18.84108722,129.92,129.91,18.12096]
[1763412236438,18.84108722,129.92,129.89,18.12096]
[1763412236983,18.84108722,129.92,129.9,0.66]
[1763412237158,9.78882769,129.92,129.9,18.78096]
[1763412237940,18.84108722,129.92,129.9,18.78096]
[1763412238878,9.78882769,129.92,129.9,18.78096]
[1763412239052,18.84108722,129.92,129.9,18.78096]
[1763412240273,18.84108722,129.92,129.9,18.12096]
[1763412240483,23.01819977,129.98,129.9,18.12096]
[1763412240650,9.78882769,129.96,129.91,9.71225953]
[1763412240978,9.78882769,129.96,129.88,0.1]
[1763412240979,9.05225953,129.96,129.95,18.12096]
[1763412241265,9.78882769,129.94,129.91,18.12096]
[1763412241467,9.05225953,129.93,129.91,18.12096]
[1763412241684,9.05225953,129.93,129.92,0.66]
[1763412241882,0.72,129.96,129.92,18.12096]
[1763412242045,9.05225953,129.94,129.92,18.12096]
[1763412242242,0.72,129.96,129.92,18.12096]
[1763412242482,9.78882769,129.98,129.93,18.78096]
[1763412242654,18.84108722,129.99,129.96,18.12096]
[1763412242855,9.05225953,129.99,129.96,18.12096]
[1763412243084,9.05225953,129.99,129.94,9.05225953]
[1763412243376,4.02990334,130.04,129.96,0.66]
[1763412243551,9.78882769,129.96,129.93,0.66]
[1763412243742,18.84108722,129.96,129.93,0.66]
[1763412244156,9.05225953,129.95,129.93,0.66]
[1763412244374,9.05225953,129.95,129.91,0.66]
[1763412244569,9.05225953,129.94,129.91,0.66]
[1763412244774,14.22541831,129.93,129.91,0.66]
[1763412244988,9.78882769,130.0,129.91,0.66]
[1763412245298,14.22541831,129.94,129.92,18.12096]
[1763412246152,14.22541831,129.94,129.92,18.78096]
[1763412246352,9.78882769,129.94,129.93,18.12096]
[1763412246763,24.014246,129.94,129.93,18.12096]
[1763412247369,24.014246,129.94,129.92,18.78096]
[1763412248378,9.78882769,129.94,129.92,18.78096]
[1763412249090,24.014246,129.94,129.92,18.78096]
[1763412250677,9.78882769,129.94,129.92,18.12096]
[1763412250882,4.03016336,130.02,129.93,33.00637831]
[1763412250883,10.50882769,130.01,129.93,33.00637831]